[Event "Early-Titled-Tuesday-Blitz-September-12-2023"]
[Site "Chess.com"]
[Date "2023.09.12"]
[Round "3"]
[White "Willychess95"]
[Black "MdImranCM"]
[Result "1/2-1/2"]
[WhiteElo "2700"]
[BlackElo "2493"]
[TimeControl "180+1"]
[EndTime "8:28:39 PDT"]
[Termination "Game drawn by repetition"]

1. e4 {[%clk 0:03:00.9]} 1... c5 {[%clk 0:02:50.1]} 2. Nf3 {[%clk 0:03:00.3]}
2... Nc6 {[%clk 0:02:13.6]} 3. d4 {[%clk 0:02:59.1]} 3... cxd4 {[%clk
0:02:12.5]} 4. Nxd4 {[%clk 0:03:00]} 4... Qc7 {[%clk 0:02:13.2]} 5. Be2 {[%clk
0:02:57.8]} 5... e6 {[%clk 0:02:11.4]} 6. O-O {[%clk 0:02:57.4]} 6... a6 {[%clk
0:02:11]} 7. c4 {[%clk 0:02:55.7]} 7... Bc5 {[%clk 0:02:10.8]} 8. Nc2 {[%clk
0:02:52.1]} 8... Nf6 {[%clk 0:02:10.2]} 9. Nc3 {[%clk 0:02:52.1]} 9... O-O
{[%clk 0:02:10.2]} 10. b3 {[%clk 0:02:50.5]} 10... b6 {[%clk 0:02:02.5]} 11. Bb2
{[%clk 0:02:50.5]} 11... Bb7 {[%clk 0:02:02.7]} 12. Rc1 {[%clk 0:02:49.4]} 12...
Rac8 {[%clk 0:01:57]} 13. Kh1 {[%clk 0:02:49.2]} 13... Qb8 {[%clk 0:01:55.6]}
14. Ne1 {[%clk 0:02:45.8]} 14... Rfd8 {[%clk 0:01:52.1]} 15. Nd3 {[%clk
0:02:45.9]} 15... Bd4 {[%clk 0:01:50.4]} 16. f4 {[%clk 0:02:41.6]} 16... Bxc3
{[%clk 0:01:49.4]} 17. Bxc3 {[%clk 0:02:40.9]} 17... Nxe4 {[%clk 0:01:49.6]} 18.
Ba1 {[%clk 0:02:41.3]} 18... d5 {[%clk 0:01:49.8]} 19. cxd5 {[%clk 0:02:32.3]}
19... Rxd5 {[%clk 0:01:49.6]} 20. Bf3 {[%clk 0:02:32.6]} 20... f5 {[%clk
0:01:27.1]} 21. Bxe4 {[%clk 0:02:31.6]} 21... fxe4 {[%clk 0:01:27]} 22. Qg4
{[%clk 0:02:32.3]} 22... Qc7 {[%clk 0:01:08.2]} 23. Qxe6+ {[%clk 0:02:10.9]}
23... Qf7 {[%clk 0:01:07.5]} 24. Qxe4 {[%clk 0:02:11.6]} 24... Re8 {[%clk
0:01:04.5]} 25. Qf3 {[%clk 0:02:05.9]} 25... Nd4 {[%clk 0:00:53.2]} 26. Qg4
{[%clk 0:02:02.9]} 26... h5 {[%clk 0:00:40.5]} 27. Qh4 {[%clk 0:01:43.3]} 27...
Nf5 {[%clk 0:00:37.5]} 28. Qf2 {[%clk 0:00:58.5]} 28... Rxd3 {[%clk 0:00:37.4]}
29. Qxb6 {[%clk 0:00:58.7]} 29... Re2 {[%clk 0:00:36.9]} 30. Rg1 {[%clk
0:00:52.3]} 30... Rxg2 {[%clk 0:00:28.7]} 31. Rxg2 {[%clk 0:00:51.1]} 31...
Bxg2+ {[%clk 0:00:23.2]} 32. Kxg2 {[%clk 0:00:50.8]} 32... Qd5+ {[%clk
0:00:22.9]} 33. Kg1 {[%clk 0:00:47.8]} 33... Rd2 {[%clk 0:00:23.2]} 34. Qg6
{[%clk 0:00:40.2]} 34... Rd1+ {[%clk 0:00:10.9]} 35. Rxd1 {[%clk 0:00:40.2]}
35... Qxd1+ {[%clk 0:00:11.7]} 36. Kf2 {[%clk 0:00:41.1]} 36... Qd2+ {[%clk
0:00:11.9]} 37. Kg1 {[%clk 0:00:40.9]} 37... Qe3+ {[%clk 0:00:12.3]} 38. Kh1
{[%clk 0:00:37.8]} 38... Qf3+ {[%clk 0:00:12.7]} 39. Kg1 {[%clk 0:00:34.1]}
39... Qe3+ {[%clk 0:00:12.4]} 40. Kh1 {[%clk 0:00:27.6]} 40... Qxf4 {[%clk
0:00:12.3]} 41. Qe8+ {[%clk 0:00:25.5]} 41... Kh7 {[%clk 0:00:12.9]} 42. Qxh5+
{[%clk 0:00:26.1]} 42... Kg8 {[%clk 0:00:13.8]} 43. Qe8+ {[%clk 0:00:24.8]}
43... Kh7 {[%clk 0:00:13.7]} 44. Qe1 {[%clk 0:00:23.4]} 44... Qf3+ {[%clk
0:00:13.4]} 45. Kg1 {[%clk 0:00:23]} 45... Ne3 {[%clk 0:00:13.8]} 46. Qh4+
{[%clk 0:00:18.6]} 46... Kg8 {[%clk 0:00:14]} 47. Qd8+ {[%clk 0:00:19.2]} 47...
Kh7 {[%clk 0:00:14.5]} 48. Qh4+ {[%clk 0:00:19.3]} 48... Kg8 {[%clk 0:00:14.9]}
49. Qd8+ {[%clk 0:00:18.4]} 49... Kf7 {[%clk 0:00:15.3]} 50. Qd7+ {[%clk
0:00:17.8]} 50... Kg6 {[%clk 0:00:13.4]} 51. Qxg7+ {[%clk 0:00:17.9]} 51... Kh5
{[%clk 0:00:13.7]} 52. Qh7+ {[%clk 0:00:18.4]} 52... Kg5 {[%clk 0:00:14.2]} 53.
Qg7+ {[%clk 0:00:17.1]} 53... Kh5 {[%clk 0:00:14.7]} 54. Qh8+ {[%clk 0:00:15.8]}
54... Kg5 {[%clk 0:00:14.6]} 55. Qe5+ {[%clk 0:00:16.2]} 55... Kh6 {[%clk
0:00:13.6]} 56. Qg7+ {[%clk 0:00:15.9]} 56... Kh5 {[%clk 0:00:14]} 1/2-1/2

[Event "Early-Titled-Tuesday-Blitz-September-12-2023"]
[Site "Chess.com"]
[Date "2023.09.12"]
[Round "3"]
[White "VOneChess"]
[Black "Ermito2020"]
[Result "0-1"]
[WhiteElo "2252"]
[BlackElo "2554"]
[TimeControl "180+1"]
[EndTime "8:28:45 PDT"]
[Termination "Ermito2020 won by checkmate"]

1. e4 {[%clk 0:03:00.9]} 1... e6 {[%clk 0:02:59.3]} 2. d4 {[%clk 0:02:59.9]}
2... d5 {[%clk 0:02:59.8]} 3. Nd2 {[%clk 0:03:00.2]} 3... Be7 {[%clk 0:02:59]}
4. Ngf3 {[%clk 0:02:59.8]} 4... Nf6 {[%clk 0:02:59]} 5. e5 {[%clk 0:02:59.8]}
5... Nfd7 {[%clk 0:02:59.6]} 6. Bd3 {[%clk 0:03:00.5]} 6... c5 {[%clk
0:03:00.3]} 7. c3 {[%clk 0:03:01]} 7... Nc6 {[%clk 0:03:00.8]} 8. O-O {[%clk
0:03:00.2]} 8... g5 {[%clk 0:03:01.4]} 9. h3 {[%clk 0:02:57.6]} 9... h5 {[%clk
0:03:00.4]} 10. dxc5 {[%clk 0:01:27.8]} 10... g4 {[%clk 0:02:55.9]} 11. Nh2
{[%clk 0:01:07.1]} 11... Ndxe5 {[%clk 0:02:44.5]} 12. Be2 {[%clk 0:01:00.8]}
12... Bxc5 {[%clk 0:02:41.6]} 13. Kh1 {[%clk 0:00:57.2]} 13... gxh3 {[%clk
0:02:36.8]} 14. g3 {[%clk 0:00:47.6]} 14... Bd7 {[%clk 0:02:33.9]} 15. f4 {[%clk
0:00:44.8]} 15... Ng4 {[%clk 0:02:17.3]} 16. Nxg4 {[%clk 0:00:30.5]} 16... hxg4
{[%clk 0:02:18.2]} 17. Bxg4 {[%clk 0:00:30.9]} 17... Qf6 {[%clk 0:02:17.4]} 18.
Nb3 {[%clk 0:00:29.6]} 18... Bb6 {[%clk 0:02:15.9]} 19. f5 {[%clk 0:00:26.1]}
19... e5 {[%clk 0:01:50.9]} 20. a4 {[%clk 0:00:19.2]} 20... a6 {[%clk
0:01:41.6]} 21. a5 {[%clk 0:00:18.5]} 21... Ba7 {[%clk 0:01:41]} 22. Kh2 {[%clk
0:00:16.1]} 22... O-O-O {[%clk 0:01:33.5]} 23. Qxd5 {[%clk 0:00:12]} 23... Be6
{[%clk 0:01:25.4]} 24. fxe6 {[%clk 0:00:08.9]} 24... Qxf1 {[%clk 0:01:21.3]} 25.
e7+ {[%clk 0:00:08.5]} 25... Kb8 {[%clk 0:01:21.4]} 26. exd8=Q+ {[%clk
0:00:07.7]} 26... Rxd8 {[%clk 0:01:21.2]} 27. Qf3 {[%clk 0:00:02.2]} 27... Bg1+
{[%clk 0:01:14.1]} 28. Kh1 {[%clk 0:00:01.9]} 28... Bf2+ {[%clk 0:01:13.9]} 29.
Kh2 {[%clk 0:00:02.5]} 29... Qg1+ {[%clk 0:01:08.6]} 30. Kxh3 {[%clk 0:00:02.7]}
30... Rh8+ {[%clk 0:01:09.3]} 31. Bh5 {[%clk 0:00:03.1]} 31... Rxh5+ {[%clk
0:01:09.8]} 32. Kg4 {[%clk 0:00:03.7]} 32... Rh8 {[%clk 0:01:03.7]} 33. Bg5
{[%clk 0:00:04.2]} 33... Qh2 {[%clk 0:00:59.2]} 34. Bh4 {[%clk 0:00:04.8]} 34...
Rxh4+ {[%clk 0:00:51.6]} 35. gxh4 {[%clk 0:00:05.7]} 35... Qxh4+ {[%clk
0:00:52.2]} 36. Kf5 {[%clk 0:00:05.8]} 36... Ne7+ {[%clk 0:00:52.7]} 37. Kxe5
{[%clk 0:00:05.6]} 37... Bg3+ {[%clk 0:00:53.4]} 38. Qxg3 {[%clk 0:00:04.3]}
38... Qxg3+ {[%clk 0:00:54.3]} 39. Kd4 {[%clk 0:00:04.4]} 39... Qd6+ {[%clk
0:00:52]} 40. Kc4 {[%clk 0:00:03.3]} 40... Qd5+ {[%clk 0:00:52.1]} 41. Kb4
{[%clk 0:00:03.8]} 41... Nc6+ {[%clk 0:00:52]} 42. Ka3 {[%clk 0:00:04.3]} 42...
Nxa5 {[%clk 0:00:50.1]} 43. Nd4 {[%clk 0:00:04.9]} 43... Qc5+ {[%clk 0:00:46]}
44. b4 {[%clk 0:00:05]} 44... Qxc3+ {[%clk 0:00:46]} 45. Ka2 {[%clk 0:00:04.4]}
45... Qxb4 {[%clk 0:00:43.7]} 46. Rb1 {[%clk 0:00:02.6]} 46... Qa4+ {[%clk
0:00:43]} 47. Kb2 {[%clk 0:00:02.4]} 47... Qxd4+ {[%clk 0:00:43.9]} 48. Ka3
{[%clk 0:00:03]} 48... Nc4+ {[%clk 0:00:43.4]} 49. Ka2 {[%clk 0:00:03.3]} 49...
f5 {[%clk 0:00:40.5]} 50. Rb3 {[%clk 0:00:03.4]} 50... f4 {[%clk 0:00:39.6]} 51.
Kb1 {[%clk 0:00:03.2]} 51... Nd2+ {[%clk 0:00:38.7]} 52. Kc2 {[%clk 0:00:02.5]}
52... Nxb3 {[%clk 0:00:39.6]} 53. Kxb3 {[%clk 0:00:02.4]} 53... f3 {[%clk
0:00:40.3]} 54. Kc2 {[%clk 0:00:03]} 54... f2 {[%clk 0:00:40.9]} 55. Kb3 {[%clk
0:00:03.4]} 55... f1=Q {[%clk 0:00:40.5]} 56. Ka2 {[%clk 0:00:04.3]} 56... Qfc4+
{[%clk 0:00:38.1]} 57. Kb1 {[%clk 0:00:04.6]} 57... Qd1+ {[%clk 0:00:37.5]} 58.
Kb2 {[%clk 0:00:05]} 58... Qd2+ {[%clk 0:00:37.4]} 59. Kb1 {[%clk 0:00:05.4]}
59... Qcc1# {[%clk 0:00:36.8]} 0-1

[Event "Early-Titled-Tuesday-Blitz-September-12-2023"]
[Site "Chess.com"]
[Date "2023.09.12"]
[Round "3"]
[White "jens1102"]
[Black "Sanan_Sjugirov"]
[Result "0-1"]
[WhiteElo "2687"]
[BlackElo "2917"]
[TimeControl "180+1"]
[EndTime "8:28:49 PDT"]
[Termination "Sanan_Sjugirov won by resignation"]

1. c4 {[%clk 0:03:00.7]} 1... e6 {[%clk 0:03:00]} 2. Nf3 {[%clk 0:03:00]} 2...
d5 {[%clk 0:03:00.6]} 3. e3 {[%clk 0:03:00.5]} 3... Nf6 {[%clk 0:03:01.2]} 4. b3
{[%clk 0:03:00.9]} 4... b6 {[%clk 0:03:01.2]} 5. Bb2 {[%clk 0:03:01.3]} 5... Bb7
{[%clk 0:03:01.9]} 6. d4 {[%clk 0:03:01]} 6... Bd6 {[%clk 0:03:01.9]} 7. Bd3
{[%clk 0:02:58.2]} 7... O-O {[%clk 0:03:02.5]} 8. O-O {[%clk 0:02:58.5]} 8...
Nbd7 {[%clk 0:03:02.8]} 9. Nc3 {[%clk 0:02:56.6]} 9... a6 {[%clk 0:02:58.9]} 10.
Qc2 {[%clk 0:02:55.5]} 10... Re8 {[%clk 0:02:42.1]} 11. e4 {[%clk 0:02:50.9]}
11... dxc4 {[%clk 0:02:42]} 12. Bxc4 {[%clk 0:02:11.6]} 12... b5 {[%clk
0:02:42.3]} 13. Bd3 {[%clk 0:02:04.2]} 13... e5 {[%clk 0:02:42.2]} 14. Rfe1
{[%clk 0:01:48.9]} 14... Qe7 {[%clk 0:02:34.3]} 15. Nd5 {[%clk 0:01:43.4]} 15...
Bxd5 {[%clk 0:02:28.7]} 16. dxe5 {[%clk 0:01:40.8]} 16... Nxe5 {[%clk 0:02:28]}
17. Nxe5 {[%clk 0:01:34.9]} 17... Bxe5 {[%clk 0:02:28]} 18. exd5 {[%clk
0:01:33]} 18... Qd6 {[%clk 0:02:26.6]} 19. Bxe5 {[%clk 0:01:21.2]} 19... Rxe5
{[%clk 0:02:27.5]} 20. Rxe5 {[%clk 0:01:20.9]} 20... Qxe5 {[%clk 0:02:28.4]} 21.
Rc1 {[%clk 0:01:18.2]} 21... Qxd5 {[%clk 0:02:13.7]} 22. Be2 {[%clk 0:00:48.6]}
22... Qe5 {[%clk 0:02:08.3]} 23. Bf3 {[%clk 0:00:45.9]} 23... Re8 {[%clk
0:02:07.3]} 24. g3 {[%clk 0:00:43.3]} 24... Re7 {[%clk 0:02:05.6]} 25. Qc6
{[%clk 0:00:42.8]} 25... Qb2 {[%clk 0:01:38.1]} 26. Rd1 {[%clk 0:00:42.8]} 26...
h5 {[%clk 0:01:01]} 27. Qxa6 {[%clk 0:00:35.5]} 27... Qc3 {[%clk 0:01:00.9]} 28.
Qc8+ {[%clk 0:00:26.9]} 28... Kh7 {[%clk 0:01:00.6]} 29. Qf5+ {[%clk 0:00:27.1]}
29... g6 {[%clk 0:01:00.7]} 30. Qd3 {[%clk 0:00:27.8]} 30... Qa5 {[%clk
0:00:50.5]} 31. Kg2 {[%clk 0:00:25.1]} 31... Qxa2 {[%clk 0:00:47.4]} 32. Qxb5
{[%clk 0:00:24.7]} 32... Qb2 {[%clk 0:00:46.5]} 33. Qc4 {[%clk 0:00:24.4]} 33...
Kg7 {[%clk 0:00:40.6]} 34. h4 {[%clk 0:00:20.7]} 34... Qa3 {[%clk 0:00:29.4]}
35. b4 {[%clk 0:00:20.3]} 35... Qa4 {[%clk 0:00:28.7]} 36. Qd4 {[%clk
0:00:19.9]} 36... Rd7 {[%clk 0:00:27.2]} 37. Qa1 {[%clk 0:00:19.9]} 37... Qb5
{[%clk 0:00:19.1]} 38. Rxd7 {[%clk 0:00:20]} 38... Qxd7 {[%clk 0:00:20]} 39. Qc3
{[%clk 0:00:20.6]} 39... Qd6 {[%clk 0:00:19.6]} 40. Qc5 {[%clk 0:00:20.7]} 40...
Qxc5 {[%clk 0:00:17]} 41. bxc5 {[%clk 0:00:21.6]} 41... Nd7 {[%clk 0:00:17.8]}
42. c6 {[%clk 0:00:21.5]} 42... Ne5 {[%clk 0:00:18.6]} 43. Be4 {[%clk
0:00:21.5]} 43... Kf6 {[%clk 0:00:18.9]} 44. f4 {[%clk 0:00:22.1]} 44... Nc4
{[%clk 0:00:18.9]} 45. Kf3 {[%clk 0:00:21.9]} 45... Nd2+ {[%clk 0:00:16.5]} 46.
Ke3 {[%clk 0:00:22.2]} 46... Nxe4 {[%clk 0:00:15.7]} 47. Kxe4 {[%clk 0:00:23.1]}
47... Ke6 {[%clk 0:00:16.6]} 48. Kd4 {[%clk 0:00:11.3]} 48... Kd6 {[%clk
0:00:16.5]} 49. Ke4 {[%clk 0:00:08.7]} 49... Kxc6 {[%clk 0:00:15.6]} 50. g4
{[%clk 0:00:08.6]} 50... hxg4 {[%clk 0:00:14.1]} 51. f5 {[%clk 0:00:09.1]} 51...
Kd6 {[%clk 0:00:13.8]} 52. fxg6 {[%clk 0:00:09]} 52... fxg6 {[%clk 0:00:14.7]}
53. Kf4 {[%clk 0:00:09.8]} 53... c5 {[%clk 0:00:14.7]} 54. Kxg4 {[%clk
0:00:10.6]} 54... c4 {[%clk 0:00:15]} 55. Kf3 {[%clk 0:00:09.1]} 55... Kc5
{[%clk 0:00:13.7]} 56. Ke4 {[%clk 0:00:08.7]} 56... Kb4 {[%clk 0:00:12.7]} 57.
Ke5 {[%clk 0:00:08.8]} 57... c3 {[%clk 0:00:12.8]} 58. Kf6 {[%clk 0:00:09.7]}
58... c2 {[%clk 0:00:13.1]} 59. Kxg6 {[%clk 0:00:10.6]} 59... c1=Q {[%clk
0:00:13.7]} 0-1

[Event "Early-Titled-Tuesday-Blitz-September-12-2023"]
[Site "Chess.com"]
[Date "2023.09.12"]
[Round "3"]
[White "FoxOnTheRun97"]
[Black "pirulillo"]
[Result "1-0"]
[WhiteElo "2548"]
[BlackElo "2305"]
[TimeControl "180+1"]
[EndTime "8:28:52 PDT"]
[Termination "FoxOnTheRun97 won on time"]

1. d4 {[%clk 0:03:00.9]} 1... Nf6 {[%clk 0:02:49.1]} 2. Bg5 {[%clk 0:02:59.4]}
2... Ne4 {[%clk 0:02:48.1]} 3. h4 {[%clk 0:02:59.1]} 3... c5 {[%clk 0:02:46.6]}
4. d5 {[%clk 0:02:59]} 4... h6 {[%clk 0:02:43.4]} 5. Bc1 {[%clk 0:02:40.4]} 5...
d6 {[%clk 0:02:37.6]} 6. Nd2 {[%clk 0:02:31.3]} 6... Bf5 {[%clk 0:02:28]} 7.
Nxe4 {[%clk 0:02:27.3]} 7... Bxe4 {[%clk 0:02:28.9]} 8. f3 {[%clk 0:02:27.8]}
8... Bh7 {[%clk 0:02:27.1]} 9. e4 {[%clk 0:02:27.7]} 9... a6 {[%clk 0:02:26.6]}
10. a4 {[%clk 0:02:27.3]} 10... e6 {[%clk 0:02:24.4]} 11. Bc4 {[%clk 0:02:18.5]}
11... e5 {[%clk 0:02:23.9]} 12. g4 {[%clk 0:02:06.7]} 12... Be7 {[%clk
0:02:16.5]} 13. h5 {[%clk 0:02:05.7]} 13... Bh4+ {[%clk 0:02:14]} 14. Kf1 {[%clk
0:02:02]} 14... O-O {[%clk 0:02:05.5]} 15. Kg2 {[%clk 0:01:56.1]} 15... Nd7
{[%clk 0:02:02.1]} 16. Be3 {[%clk 0:01:44.5]} 16... Bg5 {[%clk 0:01:53.7]} 17.
Qd2 {[%clk 0:01:33.4]} 17... f6 {[%clk 0:01:52.9]} 18. Ne2 {[%clk 0:01:26.6]}
18... Qc7 {[%clk 0:01:31.3]} 19. c3 {[%clk 0:01:05]} 19... Rfc8 {[%clk
0:01:22.4]} 20. Rhb1 {[%clk 0:01:01]} 20... Kh8 {[%clk 0:01:17.7]} 21. Qd3
{[%clk 0:00:55.4]} 21... Rab8 {[%clk 0:01:13]} 22. Bf2 {[%clk 0:00:50.7]} 22...
Nb6 {[%clk 0:01:07]} 23. a5 {[%clk 0:00:41.3]} 23... Nxc4 {[%clk 0:00:49.5]} 24.
Qxc4 {[%clk 0:00:42.2]} 24... Bg8 {[%clk 0:00:49.4]} 25. b3 {[%clk 0:00:37.7]}
25... Bf7 {[%clk 0:00:49.1]} 26. Qd3 {[%clk 0:00:33.2]} 26... Be8 {[%clk
0:00:48.4]} 27. c4 {[%clk 0:00:31.5]} 27... b5 {[%clk 0:00:46.1]} 28. axb6
{[%clk 0:00:29.4]} 28... Rxb6 {[%clk 0:00:46.5]} 29. Ra3 {[%clk 0:00:29.4]}
29... Rcb8 {[%clk 0:00:45.9]} 30. Rba1 {[%clk 0:00:29.4]} 30... a5 {[%clk
0:00:44.2]} 31. Be1 {[%clk 0:00:26.3]} 31... a4 {[%clk 0:00:36.7]} 32. Ba5
{[%clk 0:00:25.9]} 32... axb3 {[%clk 0:00:32.6]} 33. Bxb6 {[%clk 0:00:24.6]}
33... Qxb6 {[%clk 0:00:33.5]} 34. Rb1 {[%clk 0:00:23.8]} 34... b2 {[%clk
0:00:28.7]} 35. Qc2 {[%clk 0:00:16.5]} 35... Qb4 {[%clk 0:00:25.5]} 36. Ra2
{[%clk 0:00:15.4]} 36... Bc1 {[%clk 0:00:10.8]} 37. Nxc1 {[%clk 0:00:15.1]}
37... bxc1=Q {[%clk 0:00:09.9]} 38. Rxc1 {[%clk 0:00:13.4]} 38... Kh7 {[%clk
0:00:06.7]} 39. Raa1 {[%clk 0:00:12.6]} 39... Qb7 {[%clk 0:00:03.3]} 40. Rcb1
{[%clk 0:00:12.5]} 40... Qc8 {[%clk 0:00:03.6]} 41. Rxb8 {[%clk 0:00:12.5]}
41... Qxb8 {[%clk 0:00:04.5]} 42. Ra5 {[%clk 0:00:10.8]} 42... Qb4 {[%clk
0:00:04.3]} 43. Ra7 {[%clk 0:00:10.5]} 43... Qe1 {[%clk 0:00:04]} 44. Qf2 {[%clk
0:00:09.9]} 44... Qc3 {[%clk 0:00:03.6]} 45. Re7 {[%clk 0:00:08.8]} 45... Ba4
{[%clk 0:00:03.3]} 46. Qa2 {[%clk 0:00:08.1]} 46... Bb3 {[%clk 0:00:02.9]} 47.
Qf2 {[%clk 0:00:04.5]} 47... Bxc4 {[%clk 0:00:02.8]} 48. Rd7 {[%clk 0:00:04.2]}
48... Bd3 {[%clk 0:00:02]} 49. Rxd6 {[%clk 0:00:04.2]} 49... Qb4 {[%clk
0:00:01.7]} 50. Rc6 {[%clk 0:00:04.4]} 50... c4 {[%clk 0:00:01.8]} 51. d6 {[%clk
0:00:04.8]} 51... c3 {[%clk 0:00:01.7]} 52. d7 {[%clk 0:00:04.5]} 52... Qe7
{[%clk 0:00:02]} 53. Rxc3 {[%clk 0:00:03.8]} 53... Qxd7 {[%clk 0:00:01.5]} 54.
Ra3 {[%clk 0:00:03]} 1-0

[Event "Early-Titled-Tuesday-Blitz-September-12-2023"]
[Site "Chess.com"]
[Date "2023.09.12"]
[Round "3"]
[White "Tejas_Rama"]
[Black "stollenmonster"]
[Result "1/2-1/2"]
[WhiteElo "2520"]
[BlackElo "2828"]
[TimeControl "180+1"]
[EndTime "8:28:54 PDT"]
[Termination "Game drawn by stalemate"]

1. d4 {[%clk 0:01:14.9]} 1... Nf6 {[%clk 0:02:57.6]} 2. c4 {[%clk 0:01:15.5]}
2... e6 {[%clk 0:02:58.2]} 3. Nf3 {[%clk 0:01:16.1]} 3... d5 {[%clk 0:02:59.1]}
4. Nc3 {[%clk 0:01:16.4]} 4... Ne4 {[%clk 0:02:59.4]} 5. Nxe4 {[%clk 0:01:16.4]}
5... dxe4 {[%clk 0:03:00.3]} 6. Ng5 {[%clk 0:01:15.6]} 6... f5 {[%clk
0:02:59.9]} 7. Nh3 {[%clk 0:01:11.7]} 7... c5 {[%clk 0:02:57.8]} 8. dxc5 {[%clk
0:01:08.2]} 8... Qa5+ {[%clk 0:02:55.4]} 9. Bd2 {[%clk 0:01:07.7]} 9... Qxc5
{[%clk 0:02:56]} 10. b4 {[%clk 0:01:06.4]} 10... Qc7 {[%clk 0:02:55.3]} 11. e3
{[%clk 0:01:04.1]} 11... Be7 {[%clk 0:02:53.4]} 12. Bc3 {[%clk 0:01:01.5]} 12...
O-O {[%clk 0:02:49.6]} 13. Be2 {[%clk 0:01:01.9]} 13... Nc6 {[%clk 0:02:45.1]}
14. Qb3 {[%clk 0:00:59.3]} 14... Ne5 {[%clk 0:02:40.6]} 15. O-O {[%clk
0:00:52.1]} 15... Bf6 {[%clk 0:02:32.5]} 16. Rac1 {[%clk 0:00:50.3]} 16... b6
{[%clk 0:02:30.5]} 17. c5 {[%clk 0:00:48.7]} 17... bxc5 {[%clk 0:02:29.2]} 18.
Nf4 {[%clk 0:00:46.8]} 18... c4 {[%clk 0:02:27.5]} 19. Bxe5 {[%clk 0:00:45.9]}
19... Bxe5 {[%clk 0:02:22.9]} 20. Bxc4 {[%clk 0:00:43.3]} 20... Bxf4 {[%clk
0:01:48.2]} 21. Bxe6+ {[%clk 0:00:39.4]} 21... Bxe6 {[%clk 0:01:49.1]} 22. Qxe6+
{[%clk 0:00:36.2]} 22... Qf7 {[%clk 0:01:48]} 23. Qxf7+ {[%clk 0:00:36.8]} 23...
Rxf7 {[%clk 0:01:48.1]} 24. exf4 {[%clk 0:00:37.7]} 24... Rb7 {[%clk 0:01:46]}
25. Rc4 {[%clk 0:00:36]} 25... a5 {[%clk 0:01:43.3]} 26. a3 {[%clk 0:00:26.7]}
26... axb4 {[%clk 0:01:43.3]} 27. axb4 {[%clk 0:00:27.6]} 27... Ra4 {[%clk
0:01:42.3]} 28. Rb1 {[%clk 0:00:27.4]} 28... Kf7 {[%clk 0:01:35.2]} 29. g3
{[%clk 0:00:27]} 29... h6 {[%clk 0:01:27.5]} 30. Kg2 {[%clk 0:00:26.6]} 30...
Kg6 {[%clk 0:01:20.2]} 31. Rc6+ {[%clk 0:00:25.7]} 31... Kh7 {[%clk 0:01:19.8]}
32. b5 {[%clk 0:00:26.3]} 32... Ra2 {[%clk 0:01:18]} 33. Kg1 {[%clk 0:00:25.8]}
33... Rd7 {[%clk 0:00:59.5]} 34. Rcc1 {[%clk 0:00:17.9]} 34... Rdd2 {[%clk
0:00:55.8]} 35. Rf1 {[%clk 0:00:18.3]} 35... e3 {[%clk 0:00:55]} 36. b6 {[%clk
0:00:17.2]} 36... Ra8 {[%clk 0:00:37]} 37. b7 {[%clk 0:00:13.7]} 37... Rb8
{[%clk 0:00:35.8]} 38. fxe3 {[%clk 0:00:13.7]} 38... Rd7 {[%clk 0:00:35.5]} 39.
Rb5 {[%clk 0:00:09.5]} 39... Rbxb7 {[%clk 0:00:33.1]} 40. Rxf5 {[%clk
0:00:10.1]} 40... Rd3 {[%clk 0:00:31.9]} 41. Re5 {[%clk 0:00:09.3]} 41... Kg6
{[%clk 0:00:25.1]} 42. Re6+ {[%clk 0:00:08.7]} 42... Kf5 {[%clk 0:00:25.1]} 43.
Re5+ {[%clk 0:00:08.8]} 43... Kg4 {[%clk 0:00:25.8]} 44. Kg2 {[%clk 0:00:09.3]}
44... Rd2+ {[%clk 0:00:25]} 45. Rf2 {[%clk 0:00:09.8]} 45... Rxf2+ {[%clk
0:00:23.9]} 46. Kxf2 {[%clk 0:00:10.7]} 46... Rb2+ {[%clk 0:00:24.1]} 47. Kg1
{[%clk 0:00:10.8]} 47... Kf3 {[%clk 0:00:24.2]} 48. h4 {[%clk 0:00:10.3]} 48...
Kxg3 {[%clk 0:00:23.2]} 49. Kf1 {[%clk 0:00:10.3]} 49... Kxh4 {[%clk 0:00:21.7]}
50. Re7 {[%clk 0:00:10.3]} 50... g5 {[%clk 0:00:18.5]} 51. fxg5 {[%clk 0:00:10]}
51... hxg5 {[%clk 0:00:19.4]} 52. e4 {[%clk 0:00:09.5]} 52... Kg4 {[%clk
0:00:19.8]} 53. e5 {[%clk 0:00:09.3]} 53... Kf5 {[%clk 0:00:17.8]} 54. e6 {[%clk
0:00:09.4]} 54... Kf6 {[%clk 0:00:17.9]} 55. Re8 {[%clk 0:00:08.6]} 55... Rb6
{[%clk 0:00:16.4]} 56. e7 {[%clk 0:00:08.8]} 56... Re6 {[%clk 0:00:12.6]} 57.
Kf2 {[%clk 0:00:09.2]} 57... Kf7 {[%clk 0:00:09.7]} 58. Rh8 {[%clk 0:00:07.5]}
58... Rxe7 {[%clk 0:00:09]} 59. Rh7+ {[%clk 0:00:07]} 59... Kf6 {[%clk
0:00:09.4]} 60. Rxe7 {[%clk 0:00:07.9]} 60... Kxe7 {[%clk 0:00:10.3]} 61. Kf3
{[%clk 0:00:08.4]} 61... Kf6 {[%clk 0:00:11.2]} 62. Kg4 {[%clk 0:00:09.1]} 62...
Kg6 {[%clk 0:00:11.9]} 63. Kg3 {[%clk 0:00:09.5]} 63... Kf5 {[%clk 0:00:12.8]}
64. Kf3 {[%clk 0:00:09.3]} 64... g4+ {[%clk 0:00:13.2]} 65. Kg3 {[%clk
0:00:09.9]} 65... Kg5 {[%clk 0:00:14.1]} 66. Kg2 {[%clk 0:00:10.5]} 66... Kf4
{[%clk 0:00:15]} 67. Kf2 {[%clk 0:00:11]} 67... g3+ {[%clk 0:00:15.9]} 68. Kg2
{[%clk 0:00:11.7]} 68... Kg4 {[%clk 0:00:16.8]} 69. Kg1 {[%clk 0:00:12.3]} 69...
Kf3 {[%clk 0:00:17.7]} 70. Kf1 {[%clk 0:00:12.8]} 70... g2+ {[%clk 0:00:18.6]}
71. Kg1 {[%clk 0:00:13.3]} 71... Kg3 {[%clk 0:00:19.5]} 1/2-1/2